[Event "Titled Tuesday Blitz August 17 2021"]
[White "Elissalt Cardenas, Hector"]
[Black "Kalghatgi, Nikhil"]
[WhiteFideId "3500632"]
[BlackFideId "2056496"]
[WhiteElo "2268"]
[BlackElo "1994"]
[Result "0-1"]
[Round "11"]
[TimeControl "180+1"]
[Date "2021.08.18"]
[WhiteClock "0:00:01"]
[BlackClock "0:00:14"]

1. d4 {[%clk 0:03:00]}  g6 {[%clk 0:02:58]} 2. Nf3 {[%clk 0:02:58]}  Bg7 {[%clk 0:02:59]} 3. e4 {[%clk 0:02:48]}  a6 {[%clk 0:02:58]} 4. c3 {[%clk 0:02:42]}  b5 {[%clk 0:02:58]} 5. a4 {[%clk 0:02:42]}  bxa4 {[%clk 0:02:55]} 6. Bc4 {[%clk 0:02:39]}  e6 {[%clk 0:02:55]} 7. e5 {[%clk 0:02:36]}  Bb7 {[%clk 0:02:52]} 8. Rxa4 {[%clk 0:02:28]}  d5 {[%clk 0:02:48]} 9. Bd3 {[%clk 0:02:24]}  c5 {[%clk 0:02:45]} 10. dxc5 {[%clk 0:02:20]}  Ne7 {[%clk 0:02:41]} 11. b4 {[%clk 0:02:16]}  O-O {[%clk 0:02:40]} 12. Be3 {[%clk 0:02:15]}  Nbc6 {[%clk 0:02:38]} 13. Bd4 {[%clk 0:02:12]}  Qc7 {[%clk 0:02:35]} 14. Qe2 {[%clk 0:02:07]}  Rfb8 {[%clk 0:02:34]} 15. O-O {[%clk 0:02:06]}  Nxd4 {[%clk 0:02:28]} 16. cxd4 {[%clk 0:02:04]}  Bc6 {[%clk 0:02:28]} 17. Rxa6 {[%clk 0:01:55]}  Rxa6 {[%clk 0:02:28]} 18. Bxa6 {[%clk 0:01:54]}  Rxb4 {[%clk 0:02:28]} 19. Nbd2 {[%clk 0:01:46]}  Nf5 {[%clk 0:02:25]} 20. Rb1 {[%clk 0:01:31]}  Nxd4 {[%clk 0:02:09]} 21. Nxd4 {[%clk 0:01:24]}  Rxd4 {[%clk 0:02:10]} 22. Nf3 {[%clk 0:01:16]}  Ra4 {[%clk 0:02:02]} 23. Bb5 {[%clk 0:01:13]}  Bxb5 {[%clk 0:01:43]} 24. Qxb5 {[%clk 0:01:12]}  Ra5 {[%clk 0:01:42]} 25. Qe8+ {[%clk 0:01:01]}  Bf8 {[%clk 0:01:40]} 26. h4 {[%clk 0:01:00]}  Qxc5 {[%clk 0:00:55]} 27. h5 {[%clk 0:00:34]}  Ra2 {[%clk 0:00:48]} 28. Rf1 {[%clk 0:00:30]}  Qe7 {[%clk 0:00:46]} 29. Qc8 {[%clk 0:00:13]}  Qc5 {[%clk 0:00:21]} 30. Qd8 {[%clk 0:00:07]}  Qe7 {[%clk 0:00:18]} 31. Qc8 {[%clk 0:00:07]}  Ra7 {[%clk 0:00:18]} 32. Rc1 {[%clk 0:00:05]}  Rd7 {[%clk 0:00:17]} 33. hxg6 {[%clk 0:00:04]}  hxg6 {[%clk 0:00:17]} 34. Qb8 {[%clk 0:00:02]}  Qd8 {[%clk 0:00:15]} 35. Rc8 {[%clk 0:00:01]}  Qe7 {[%clk 0:00:14]} 0-1


[Site "https://www.chess.com"]

[Event "Titled Tuesday Blitz August 17 2021"]
[White "Fier, Alexandr"]
[Black "Shapiro, David"]
[WhiteFideId "2107139"]
[BlackFideId "24133523"]
[WhiteElo "2569"]
[BlackElo "2234"]
[Result "1-0"]
[Round "11"]
[TimeControl "180+1"]
[Date "2021.08.17"]
[WhiteClock "0:01:58"]
[BlackClock "0:00:14"]

1. d4 {[%clk 0:02:57]}  d5 {[%clk 0:02:58]} 2. Bf4 {[%clk 0:02:55]}  Nf6 {[%clk 0:02:57]} 3. Nc3 {[%clk 0:02:56]}  a6 {[%clk 0:02:55]} 4. f3 {[%clk 0:02:52]}  c5 {[%clk 0:02:51]} 5. e3 {[%clk 0:02:47]}  Nc6 {[%clk 0:02:50]} 6. g4 {[%clk 0:02:39]}  cxd4 {[%clk 0:02:30]} 7. exd4 {[%clk 0:02:39]}  Qb6 {[%clk 0:02:30]} 8. Nge2 {[%clk 0:02:39]}  e6 {[%clk 0:02:27]} 9. a3 {[%clk 0:02:37]}  Bd7 {[%clk 0:02:25]} 10. Rb1 {[%clk 0:02:35]}  Rc8 {[%clk 0:02:22]} 11. Bg2 {[%clk 0:02:35]}  Be7 {[%clk 0:02:10]} 12. O-O {[%clk 0:02:34]}  O-O {[%clk 0:02:04]} 13. Kh1 {[%clk 0:02:35]}  Ne8 {[%clk 0:01:56]} 14. Be3 {[%clk 0:02:33]}  Na5 {[%clk 0:01:50]} 15. f4 {[%clk 0:02:32]}  Nc4 {[%clk 0:01:49]} 16. Bg1 {[%clk 0:02:32]}  Ned6 {[%clk 0:01:21]} 17. f5 {[%clk 0:02:31]}  Nxb2 {[%clk 0:01:19]} 18. Qc1 {[%clk 0:02:27]}  Ndc4 {[%clk 0:01:18]} 19. f6 {[%clk 0:02:26]}  Bxf6 {[%clk 0:01:15]} 20. Rxf6 {[%clk 0:02:26]}  gxf6 {[%clk 0:01:16]} 21. Qh6 {[%clk 0:02:26]}  Qd8 {[%clk 0:00:53]} 22. Nf4 {[%clk 0:02:25]}  Kh8 {[%clk 0:00:50]} 23. Nh5 {[%clk 0:02:10]}  Rg8 {[%clk 0:00:50]} 24. Nxf6 {[%clk 0:02:10]}  Rg7 {[%clk 0:00:50]} 25. Rf1 {[%clk 0:02:08]}  Na4 {[%clk 0:00:45]} 26. Rf3 {[%clk 0:02:08]}  Nxc3 {[%clk 0:00:44]} 27. Rxc3 {[%clk 0:02:08]}  e5 {[%clk 0:00:16]} 28. Rh3 {[%clk 0:02:07]}  Qxf6 {[%clk 0:00:14]} 29. Qxf6 {[%clk 0:02:08]}  e4 {[%clk 0:00:14]} 30. Rh5 {[%clk 0:01:58]} 1-0


[Site "https://www.chess.com"]

[Event "Titled Tuesday Blitz August 17 2021"]
[White "Franchini, Gabriele"]
[Black "Khodzhamkuliev, Bahadur"]
[WhiteFideId "806790"]
[BlackFideId "24135046"]
[WhiteElo "2215"]
[BlackElo "2130"]
[Result "0-1"]
[Round "11"]
[TimeControl "180+1"]
[Date "2021.08.18"]
[WhiteClock "0:00:40"]
[BlackClock "0:01:13"]

1. e4 {[%clk 0:03:00]}  Nc6 {[%clk 0:02:58]} 2. Nf3 {[%clk 0:03:00]}  d6 {[%clk 0:02:58]} 3. d4 {[%clk 0:02:58]}  Nf6 {[%clk 0:02:56]} 4. Nc3 {[%clk 0:02:42]}  g6 {[%clk 0:02:52]} 5. h3 {[%clk 0:02:40]}  Bg7 {[%clk 0:02:52]} 6. Be2 {[%clk 0:02:40]}  O-O {[%clk 0:02:52]} 7. O-O {[%clk 0:02:41]}  e5 {[%clk 0:02:52]} 8. Be3 {[%clk 0:02:31]}  exd4 {[%clk 0:02:51]} 9. Nxd4 {[%clk 0:02:31]}  Bd7 {[%clk 0:02:52]} 10. Qd2 {[%clk 0:02:25]}  Re8 {[%clk 0:02:51]} 11. f3 {[%clk 0:02:19]}  Nh5 {[%clk 0:02:33]} 12. Nxc6 {[%clk 0:02:03]}  bxc6 {[%clk 0:02:30]} 13. Bg5 {[%clk 0:01:53]}  Bf6 {[%clk 0:02:28]} 14. Bxf6 {[%clk 0:01:44]}  Qxf6 {[%clk 0:02:29]} 15. f4 {[%clk 0:01:36]}  Ng3 {[%clk 0:02:26]} 16. Rf3 {[%clk 0:01:34]}  Nxe4 {[%clk 0:02:23]} 17. Nxe4 {[%clk 0:01:32]}  Rxe4 {[%clk 0:02:24]} 18. Bd3 {[%clk 0:01:28]}  Qxb2 {[%clk 0:02:18]} 19. Rd1 {[%clk 0:01:22]}  Re7 {[%clk 0:02:11]} 20. Qa5 {[%clk 0:01:22]}  Qb6+ {[%clk 0:02:09]} 21. Qxb6 {[%clk 0:01:20]}  axb6 {[%clk 0:02:10]} 22. Bc4 {[%clk 0:01:20]}  Be6 {[%clk 0:02:08]} 23. Bb3 {[%clk 0:01:20]}  Bxb3 {[%clk 0:02:08]} 24. axb3 {[%clk 0:01:21]}  Ra2 {[%clk 0:02:06]} 25. Rc3 {[%clk 0:01:20]}  Re2 {[%clk 0:02:04]} 26. Rc1 {[%clk 0:01:17]}  c5 {[%clk 0:02:04]} 27. b4 {[%clk 0:01:14]}  h5 {[%clk 0:02:01]} 28. Kf1 {[%clk 0:01:13]}  Re4 {[%clk 0:02:00]} 29. bxc5 {[%clk 0:01:13]}  Rxf4+ {[%clk 0:01:59]} 30. Ke2 {[%clk 0:01:13]}  bxc5 {[%clk 0:01:58]} 31. Ke3 {[%clk 0:01:13]}  Rb4 {[%clk 0:01:55]} 32. Kd3 {[%clk 0:01:12]}  Kg7 {[%clk 0:01:53]} 33. Re1 {[%clk 0:01:08]}  Rd4+ {[%clk 0:01:51]} 34. Ke3 {[%clk 0:01:08]}  Rd5 {[%clk 0:01:51]} 35. Kf3 {[%clk 0:01:05]}  Rd2 {[%clk 0:01:49]} 36. Rc1 {[%clk 0:01:04]}  f5 {[%clk 0:01:44]} 37. g4 {[%clk 0:01:03]}  fxg4+ {[%clk 0:01:34]} 38. hxg4 {[%clk 0:01:04]}  hxg4+ {[%clk 0:01:34]} 39. Kxg4 {[%clk 0:01:05]}  Ra4+ {[%clk 0:01:32]} 40. Kf3 {[%clk 0:01:03]}  Rd5 {[%clk 0:01:30]} 41. Rg1 {[%clk 0:01:01]}  Rf5+ {[%clk 0:01:28]} 42. Ke2 {[%clk 0:01:00]}  Kf6 {[%clk 0:01:28]} 43. Rcg3 {[%clk 0:00:57]}  g5 {[%clk 0:01:24]} 44. Rh3 {[%clk 0:00:57]}  Rh4 {[%clk 0:01:20]} 45. Ra3 {[%clk 0:00:53]}  Rh2+ {[%clk 0:01:19]} 46. Kd1 {[%clk 0:00:52]}  Rff2 {[%clk 0:01:17]} 47. Rc3 {[%clk 0:00:51]}  Rhg2 {[%clk 0:01:15]} 48. Rh1 {[%clk 0:00:51]}  g4 {[%clk 0:01:15]} 49. Rh6+ {[%clk 0:00:50]}  Ke5 {[%clk 0:01:15]} 50. Rh5+ {[%clk 0:00:47]}  Kd4 {[%clk 0:01:13]} 51. Rd3+ {[%clk 0:00:44]}  Kc4 {[%clk 0:01:13]} 52. Ra3 {[%clk 0:00:40]}  Rf1# {[%clk 0:01:13]} 0-1


[Site "https://www.chess.com"]

[Event "Titled Tuesday Blitz August 17 2021"]
[White "Gedgafov, Chamal"]
[Black "Buscar, Michael"]
[WhiteFideId "34130621"]
[BlackFideId "2603616"]
[WhiteElo "2005"]
[BlackElo "2010"]
[Result "0-1"]
[Round "11"]
[TimeControl "180+1"]
[Date "2021.08.18"]
[WhiteClock "0:00:13"]
[BlackClock "0:00:08"]

1. d4 {[%clk 0:03:00]}  Nf6 {[%clk 0:02:48]} 2. c4 {[%clk 0:03:00]}  e6 {[%clk 0:02:48]} 3. Nc3 {[%clk 0:03:00]}  c5 {[%clk 0:02:49]} 4. d5 {[%clk 0:02:59]}  exd5 {[%clk 0:02:49]} 5. cxd5 {[%clk 0:03:00]}  d6 {[%clk 0:02:50]} 6. Nf3 {[%clk 0:03:01]}  g6 {[%clk 0:02:50]} 7. Nd2 {[%clk 0:03:01]}  Bg7 {[%clk 0:02:50]} 8. Nc4 {[%clk 0:03:02]}  a6 {[%clk 0:02:48]} 9. a4 {[%clk 0:03:00]}  O-O {[%clk 0:02:48]} 10. Bf4 {[%clk 0:02:59]}  Ne8 {[%clk 0:02:46]} 11. Qd2 {[%clk 0:02:58]}  Qe7 {[%clk 0:02:42]} 12. Nb6 {[%clk 0:02:51]}  Nc7 {[%clk 0:02:34]} 13. e3 {[%clk 0:02:32]}  Nd7 {[%clk 0:02:11]} 14. Nxa8 {[%clk 0:02:27]}  Nxa8 {[%clk 0:02:12]} 15. Bc4 {[%clk 0:02:23]}  Nab6 {[%clk 0:02:09]} 16. Be2 {[%clk 0:02:07]}  Ne5 {[%clk 0:02:07]} 17. O-O {[%clk 0:02:02]}  Bf5 {[%clk 0:02:00]} 18. a5 {[%clk 0:01:58]}  Nbc4 {[%clk 0:01:50]} 19. Bxc4 {[%clk 0:01:58]}  Nxc4 {[%clk 0:01:50]} 20. Qe2 {[%clk 0:01:56]}  Ne5 {[%clk 0:01:40]} 21. Rfd1 {[%clk 0:01:49]}  Re8 {[%clk 0:01:29]} 22. h3 {[%clk 0:01:42]}  g5 {[%clk 0:01:22]} 23. Bg3 {[%clk 0:01:40]}  g4 {[%clk 0:01:22]} 24. hxg4 {[%clk 0:01:33]}  Bxg4 {[%clk 0:01:17]} 25. f3 {[%clk 0:01:32]}  Bd7 {[%clk 0:01:16]} 26. e4 {[%clk 0:01:30]}  h5 {[%clk 0:01:10]} 27. Qf2 {[%clk 0:01:24]}  Ng6 {[%clk 0:01:09]} 28. Kf1 {[%clk 0:01:14]}  h4 {[%clk 0:00:59]} 29. Bh2 {[%clk 0:01:14]}  h3 {[%clk 0:00:59]} 30. g3 {[%clk 0:01:11]}  Ne5 {[%clk 0:00:50]} 31. Rd2 {[%clk 0:01:03]}  Qf6 {[%clk 0:00:47]} 32. f4 {[%clk 0:01:00]}  Nc4 {[%clk 0:00:38]} 33. Re2 {[%clk 0:00:58]}  Nxb2 {[%clk 0:00:34]} 34. Rxb2 {[%clk 0:00:49]}  Qxc3 {[%clk 0:00:34]} 35. Re1 {[%clk 0:00:47]}  Qxb2 {[%clk 0:00:32]} 36. Qxb2 {[%clk 0:00:45]}  Bxb2 {[%clk 0:00:32]} 37. Rb1 {[%clk 0:00:44]}  Bb5+ {[%clk 0:00:30]} 38. Kf2 {[%clk 0:00:41]}  Bd4+ {[%clk 0:00:27]} 39. Kf3 {[%clk 0:00:41]}  f5 {[%clk 0:00:22]} 40. e5 {[%clk 0:00:34]}  dxe5 {[%clk 0:00:20]} 41. fxe5 {[%clk 0:00:34]}  Rxe5 {[%clk 0:00:19]} 42. g4 {[%clk 0:00:31]}  Re3+ {[%clk 0:00:18]} 43. Kf4 {[%clk 0:00:31]}  fxg4 {[%clk 0:00:18]} 44. Kxg4 {[%clk 0:00:30]}  Kf7 {[%clk 0:00:15]} 45. Bd6 {[%clk 0:00:25]}  Ke8 {[%clk 0:00:10]} 46. Rh1 {[%clk 0:00:23]}  Kd7 {[%clk 0:00:09]} 47. Bb8 {[%clk 0:00:23]}  Bc4 {[%clk 0:00:09]} 48. Kh4 {[%clk 0:00:20]}  Bxd5 {[%clk 0:00:09]} 49. Rg1 {[%clk 0:00:19]}  Re4+ {[%clk 0:00:08]} 50. Rg4 {[%clk 0:00:19]}  Bf6+ {[%clk 0:00:08]} 51. Kh5 {[%clk 0:00:19]}  Bf7+ {[%clk 0:00:09]} 52. Kh6 {[%clk 0:00:18]}  Rxg4 {[%clk 0:00:09]} 53. Bg3 {[%clk 0:00:15]}  Rxg3 {[%clk 0:00:08]} 54. Kh7 {[%clk 0:00:13]}  h2 {[%clk 0:00:08]} 0-1


[Site "https://www.chess.com"]

[Event "Titled Tuesday Blitz August 17 2021"]
[White "Girinath, P.D.S."]
[Black "Matthiesen, Martin"]
[WhiteFideId "5000572"]
[BlackFideId "1404067"]
[WhiteElo "2333"]
[BlackElo "2337"]
[Result "1-0"]
[Round "11"]
[TimeControl "180+1"]
[Date "2021.08.17"]
[WhiteClock "0:00:07"]
[BlackClock "0:00:01"]

1. e4 {[%clk 0:03:00]}  c6 {[%clk 0:02:59]} 2. d4 {[%clk 0:03:00]}  d5 {[%clk 0:02:59]} 3. exd5 {[%clk 0:03:00]}  cxd5 {[%clk 0:03:00]} 4. c4 {[%clk 0:03:00]}  Nf6 {[%clk 0:02:59]} 5. Nc3 {[%clk 0:03:01]}  e6 {[%clk 0:02:59]} 6. Nf3 {[%clk 0:03:01]}  Bb4 {[%clk 0:02:57]} 7. Bd3 {[%clk 0:03:01]}  dxc4 {[%clk 0:02:55]} 8. Bxc4 {[%clk 0:03:01]}  O-O {[%clk 0:02:55]} 9. O-O {[%clk 0:03:00]}  b6 {[%clk 0:02:51]} 10. Re1 {[%clk 0:03:00]}  Bb7 {[%clk 0:02:49]} 11. Bg5 {[%clk 0:03:00]}  Bxc3 {[%clk 0:02:49]} 12. bxc3 {[%clk 0:03:00]}  Nbd7 {[%clk 0:02:48]} 13. Bb3 {[%clk 0:02:44]}  Qc7 {[%clk 0:02:47]} 14. c4 {[%clk 0:02:25]}  h6 {[%clk 0:02:35]} 15. Bh4 {[%clk 0:02:19]}  Qf4 {[%clk 0:02:30]} 16. Bg3 {[%clk 0:02:16]}  Qg4 {[%clk 0:02:30]} 17. h3 {[%clk 0:01:53]}  Qh5 {[%clk 0:02:24]} 18. Ne5 {[%clk 0:01:52]}  Qxd1 {[%clk 0:02:21]} 19. Raxd1 {[%clk 0:01:50]}  Rfd8 {[%clk 0:02:09]} 20. f3 {[%clk 0:01:36]}  Rac8 {[%clk 0:01:58]} 21. Nxd7 {[%clk 0:01:02]}  Rxd7 {[%clk 0:01:54]} 22. Be5 {[%clk 0:01:02]}  Ne8 {[%clk 0:01:31]} 23. Re3 {[%clk 0:00:52]}  Nd6 {[%clk 0:01:18]} 24. Rc3 {[%clk 0:00:45]}  Nf5 {[%clk 0:00:51]} 25. g4 {[%clk 0:00:41]}  Nh4 {[%clk 0:00:51]} 26. Kf2 {[%clk 0:00:39]}  Ng6 {[%clk 0:00:44]} 27. Bg3 {[%clk 0:00:38]}  Rcd8 {[%clk 0:00:41]} 28. Rcd3 {[%clk 0:00:35]}  Bc6 {[%clk 0:00:37]} 29. d5 {[%clk 0:00:32]}  exd5 {[%clk 0:00:29]} 30. cxd5 {[%clk 0:00:33]}  Bb5 {[%clk 0:00:24]} 31. Rd4 {[%clk 0:00:33]}  Ne7 {[%clk 0:00:20]} 32. a4 {[%clk 0:00:31]}  Ba6 {[%clk 0:00:19]} 33. d6 {[%clk 0:00:31]}  Nc6 {[%clk 0:00:19]} 34. R4d2 {[%clk 0:00:30]}  Na5 {[%clk 0:00:19]} 35. Bd5 {[%clk 0:00:27]}  Bc4 {[%clk 0:00:19]} 36. Rd4 {[%clk 0:00:25]}  Bxd5 {[%clk 0:00:18]} 37. Rxd5 {[%clk 0:00:25]}  Nc4 {[%clk 0:00:18]} 38. R1d4 {[%clk 0:00:24]}  Na5 {[%clk 0:00:17]} 39. Rd2 {[%clk 0:00:20]}  f6 {[%clk 0:00:17]} 40. f4 {[%clk 0:00:18]}  Kf7 {[%clk 0:00:17]} 41. f5 {[%clk 0:00:18]}  Rc8 {[%clk 0:00:17]} 42. Re2 {[%clk 0:00:17]}  Rc4 {[%clk 0:00:16]} 43. Rd3 {[%clk 0:00:16]}  Rxa4 {[%clk 0:00:15]} 44. Rde3 {[%clk 0:00:17]}  Rd4 {[%clk 0:00:11]} 45. Re7+ {[%clk 0:00:17]}  Rxe7 {[%clk 0:00:11]} 46. Rxe7+ {[%clk 0:00:16]}  Kf8 {[%clk 0:00:11]} 47. Rxa7 {[%clk 0:00:15]}  Nc4 {[%clk 0:00:11]} 48. d7 {[%clk 0:00:15]}  Ke7 {[%clk 0:00:10]} 49. d8=Q+ {[%clk 0:00:11]}  Kxd8 {[%clk 0:00:10]} 50. Rxg7 {[%clk 0:00:11]}  Ne5 {[%clk 0:00:08]} 51. Bxe5 {[%clk 0:00:09]}  fxe5 {[%clk 0:00:09]} 52. Rg6 {[%clk 0:00:10]}  Kc7 {[%clk 0:00:08]} 53. Rxh6 {[%clk 0:00:10]}  b5 {[%clk 0:00:08]} 54. Re6 {[%clk 0:00:10]}  b4 {[%clk 0:00:08]} 55. Rxe5 {[%clk 0:00:10]}  Kc6 {[%clk 0:00:07]} 56. Re8 {[%clk 0:00:10]}  Rd5 {[%clk 0:00:06]} 57. f6 {[%clk 0:00:09]}  Rd7 {[%clk 0:00:04]} 58. g5 {[%clk 0:00:09]}  b3 {[%clk 0:00:04]} 59. Rb8 {[%clk 0:00:08]}  Rb7 {[%clk 0:00:01]} 60. Rxb7 {[%clk 0:00:08]}  Kxb7 {[%clk 0:00:02]} 61. f7 {[%clk 0:00:08]}  b2 {[%clk 0:00:02]} 62. f8=Q {[%clk 0:00:08]}  b1=Q {[%clk 0:00:02]} 63. Qf7+ {[%clk 0:00:08]}  Kb6 {[%clk 0:00:02]} 64. Qf6+ {[%clk 0:00:08]}  Kb7 {[%clk 0:00:01]} 65. Qf3+ {[%clk 0:00:07]} 1-0


[Site "https://www.chess.com"]

[Event "Titled Tuesday Blitz August 17 2021"]
[White "Golizadeh, Asghar"]
[Black "Bilan, Danila"]
[WhiteFideId "12505269"]
[BlackFideId "24161918"]
[WhiteElo "2403"]
[BlackElo "2164"]
[Result "0-1"]
[Round "11"]
[TimeControl "180+1"]
[Date "2021.08.17"]
[WhiteClock "0:00:40"]
[BlackClock "0:00:17"]

1. e4 {[%clk 0:03:00]}  c6 {[%clk 0:02:59]} 2. d4 {[%clk 0:03:00]}  d5 {[%clk 0:03:00]} 3. Nd2 {[%clk 0:03:01]}  dxe4 {[%clk 0:02:59]} 4. Nxe4 {[%clk 0:03:02]}  Bf5 {[%clk 0:02:58]} 5. Ng3 {[%clk 0:03:01]}  Bg6 {[%clk 0:02:58]} 6. h4 {[%clk 0:03:01]}  h6 {[%clk 0:02:58]} 7. Nf3 {[%clk 0:03:00]}  Nd7 {[%clk 0:02:58]} 8. h5 {[%clk 0:02:58]}  Bh7 {[%clk 0:02:58]} 9. Bd3 {[%clk 0:02:58]}  Bxd3 {[%clk 0:02:58]} 10. Qxd3 {[%clk 0:02:59]}  Qc7 {[%clk 0:02:59]} 11. Bd2 {[%clk 0:02:58]}  e6 {[%clk 0:02:58]} 12. O-O-O {[%clk 0:02:57]}  Bd6 {[%clk 0:02:58]} 13. Ne4 {[%clk 0:02:55]}  Ngf6 {[%clk 0:02:58]} 14. g3 {[%clk 0:02:51]}  Nxe4 {[%clk 0:02:44]} 15. Qxe4 {[%clk 0:02:52]}  O-O-O {[%clk 0:02:45]} 16. Kb1 {[%clk 0:02:47]}  Nf6 {[%clk 0:02:26]} 17. Qe2 {[%clk 0:02:46]}  c5 {[%clk 0:02:26]} 18. c4 {[%clk 0:02:27]}  Qc6 {[%clk 0:02:12]} 19. Be3 {[%clk 0:02:10]}  Qe4+ {[%clk 0:02:00]} 20. Ka1 {[%clk 0:02:09]}  Ng4 {[%clk 0:02:00]} 21. Rh4 {[%clk 0:01:51]}  Be7 {[%clk 0:01:34]} 22. Nd2 {[%clk 0:01:34]}  Qc2 {[%clk 0:01:11]} 23. Rxg4 {[%clk 0:01:27]}  f5 {[%clk 0:01:11]} 24. Rxg7 {[%clk 0:01:10]}  Bf6 {[%clk 0:01:06]} 25. Rf7 {[%clk 0:01:08]}  cxd4 {[%clk 0:00:50]} 26. Qf3 {[%clk 0:00:50]}  Rd5 {[%clk 0:00:19]} 27. cxd5 {[%clk 0:00:46]}  dxe3 {[%clk 0:00:18]} 28. dxe6 {[%clk 0:00:40]}  Qxb2# {[%clk 0:00:17]} 0-1


[Site "https://www.chess.com"]

[Event "Titled Tuesday Blitz August 17 2021"]
[White "Gontcharov, Vladislav"]
[Black "Firat, Burak"]
[WhiteFideId "4123492"]
[BlackFideId "6305881"]
[WhiteElo "2503"]
[BlackElo "2531"]
[Result "0-1"]
[Round "11"]
[TimeControl "180+1"]
[Date "2021.08.17"]
[WhiteClock "0:00:15"]
[BlackClock "0:00:12"]

1. e4 {[%clk 0:02:55]}  e5 {[%clk 0:03:00]} 2. Nf3 {[%clk 0:02:54]}  Nc6 {[%clk 0:03:00]} 3. Bb5 {[%clk 0:02:54]}  a6 {[%clk 0:02:59]} 4. Ba4 {[%clk 0:02:54]}  Nf6 {[%clk 0:02:58]} 5. O-O {[%clk 0:02:53]}  Be7 {[%clk 0:02:57]} 6. Re1 {[%clk 0:02:51]}  b5 {[%clk 0:02:51]} 7. Bb3 {[%clk 0:02:51]}  d6 {[%clk 0:02:51]} 8. c3 {[%clk 0:02:48]}  O-O {[%clk 0:02:51]} 9. h3 {[%clk 0:02:48]}  Na5 {[%clk 0:02:51]} 10. Bc2 {[%clk 0:02:47]}  c5 {[%clk 0:02:51]} 11. d4 {[%clk 0:02:47]}  Qc7 {[%clk 0:02:52]} 12. Nbd2 {[%clk 0:02:46]}  Nd7 {[%clk 0:02:51]} 13. Nf1 {[%clk 0:02:39]}  Re8 {[%clk 0:02:46]} 14. Ng3 {[%clk 0:02:36]}  Bf8 {[%clk 0:02:46]} 15. a4 {[%clk 0:02:31]}  Bb7 {[%clk 0:02:43]} 16. d5 {[%clk 0:02:25]}  c4 {[%clk 0:02:39]} 17. axb5 {[%clk 0:02:21]}  axb5 {[%clk 0:02:39]} 18. Nf5 {[%clk 0:02:13]}  Nc5 {[%clk 0:02:34]} 19. Nh2 {[%clk 0:02:03]}  Bc8 {[%clk 0:02:26]} 20. Ng4 {[%clk 0:01:52]}  Bxf5 {[%clk 0:02:24]} 21. exf5 {[%clk 0:01:53]}  f6 {[%clk 0:02:23]} 22. Be3 {[%clk 0:01:42]}  Nab3 {[%clk 0:02:13]} 23. Rb1 {[%clk 0:01:41]}  Qb7 {[%clk 0:02:02]} 24. f3 {[%clk 0:01:39]}  b4 {[%clk 0:01:59]} 25. cxb4 {[%clk 0:01:28]}  Qxb4 {[%clk 0:02:00]} 26. Nf2 {[%clk 0:01:28]}  Ra2 {[%clk 0:01:49]} 27. Re2 {[%clk 0:01:10]}  Be7 {[%clk 0:01:45]} 28. g4 {[%clk 0:01:09]}  Bd8 {[%clk 0:01:45]} 29. h4 {[%clk 0:01:09]}  Bb6 {[%clk 0:01:44]} 30. g5 {[%clk 0:01:03]}  Nd7 {[%clk 0:01:44]} 31. Bxb3 {[%clk 0:00:56]}  cxb3 {[%clk 0:01:42]} 32. Bxb6 {[%clk 0:00:52]}  Qxb6 {[%clk 0:01:43]} 33. Kg2 {[%clk 0:00:52]}  Nc5 {[%clk 0:01:23]} 34. Ng4 {[%clk 0:00:42]}  Kf7 {[%clk 0:01:18]} 35. Ne3 {[%clk 0:00:40]}  Qb4 {[%clk 0:01:15]} 36. Ng4 {[%clk 0:00:18]}  Qf4 {[%clk 0:01:11]} 37. Qd2 {[%clk 0:00:16]}  Qxd2 {[%clk 0:01:09]} 38. Rxd2 {[%clk 0:00:16]}  Rea8 {[%clk 0:01:08]} 39. gxf6 {[%clk 0:00:14]}  gxf6 {[%clk 0:01:09]} 40. Nf2 {[%clk 0:00:14]}  R8a4 {[%clk 0:01:08]} 41. Kg3 {[%clk 0:00:13]}  Rc4 {[%clk 0:01:08]} 42. Nd3 {[%clk 0:00:11]}  Rd4 {[%clk 0:01:00]} 43. Rbd1 {[%clk 0:00:10]}  Nxd3 {[%clk 0:00:53]} 44. Rxd3 {[%clk 0:00:10]}  Rxd3 {[%clk 0:00:54]} 45. Rxd3 {[%clk 0:00:11]}  Rxb2 {[%clk 0:00:54]} 46. Rc3 {[%clk 0:00:11]}  Kg7 {[%clk 0:00:46]} 47. Rc7+ {[%clk 0:00:10]}  Kh6 {[%clk 0:00:46]} 48. Rc6 {[%clk 0:00:09]}  Rb1 {[%clk 0:00:41]} 49. Rb6 {[%clk 0:00:07]}  b2 {[%clk 0:00:39]} 50. Kg2 {[%clk 0:00:08]}  Kh5 {[%clk 0:00:39]} 51. Rb4 {[%clk 0:00:07]}  Kh6 {[%clk 0:00:20]} 52. Rb6 {[%clk 0:00:06]}  Kg7 {[%clk 0:00:16]} 53. Rb7+ {[%clk 0:00:06]}  Kf8 {[%clk 0:00:15]} 54. h5 {[%clk 0:00:07]}  h6 {[%clk 0:00:15]} 55. Kh2 {[%clk 0:00:06]}  Ke8 {[%clk 0:00:16]} 56. Kg2 {[%clk 0:00:07]}  Kd8 {[%clk 0:00:16]} 57. Kh2 {[%clk 0:00:07]}  Kc8 {[%clk 0:00:17]} 58. Rb5 {[%clk 0:00:07]}  Kc7 {[%clk 0:00:17]} 59. Rb3 {[%clk 0:00:07]}  Rf1 {[%clk 0:00:14]} 60. Rxb2 {[%clk 0:00:06]}  Rxf3 {[%clk 0:00:14]} 61. Ra2 {[%clk 0:00:06]}  Rxf5 {[%clk 0:00:14]} 62. Ra7+ {[%clk 0:00:06]}  Kb6 {[%clk 0:00:14]} 63. Rf7 {[%clk 0:00:06]}  Rxh5+ {[%clk 0:00:14]} 64. Kg3 {[%clk 0:00:07]}  Rf5 {[%clk 0:00:14]} 65. Kg4 {[%clk 0:00:07]}  Rf4+ {[%clk 0:00:15]} 66. Kg3 {[%clk 0:00:08]}  Kc5 {[%clk 0:00:15]} 67. Rh7 {[%clk 0:00:08]}  Kxd5 {[%clk 0:00:15]} 68. Rxh6 {[%clk 0:00:09]}  Ke4 {[%clk 0:00:15]} 69. Rh1 {[%clk 0:00:10]}  d5 {[%clk 0:00:15]} 70. Re1+ {[%clk 0:00:11]}  Kf5 {[%clk 0:00:15]} 71. Rd1 {[%clk 0:00:12]}  d4 {[%clk 0:00:15]} 72. Rd2 {[%clk 0:00:12]}  Rg4+ {[%clk 0:00:13]} 73. Kf3 {[%clk 0:00:12]}  Rf4+ {[%clk 0:00:13]} 74. Kg3 {[%clk 0:00:12]}  Ke6 {[%clk 0:00:13]} 75. Rd1 {[%clk 0:00:12]}  Kd5 {[%clk 0:00:13]} 76. Ra1 {[%clk 0:00:13]}  d3 {[%clk 0:00:12]} 77. Ra8 {[%clk 0:00:14]}  Rd4 {[%clk 0:00:12]} 78. Rd8+ {[%clk 0:00:15]}  Ke6 {[%clk 0:00:12]} 79. Re8+ {[%clk 0:00:15]}  Kf5 {[%clk 0:00:12]} 0-1


[Site "https://www.chess.com"]